{"text_format":"3","workbook":"xlsx","n_sheets":4,"sheets":["Wheels","Sheet6","(Summary)","Sheet1"],"not_rendered":{"defined_names":2},"read":"whole","date_system":"1900"}

{"sheet":"Wheels","index":0,"n_rows":28,"n_cols":8,"rows_kept":28,"hidden":true}
[" Pers.No.","Initials","Last name","First name","Route","Position","Working Times","Comment"]
[2515,"BF","Zuma ","Babhekile","Mzingazi","Operator","07H00 to 15H30"]
[5273,"M","Majola","Mfihleni","Empangeni","Senior Operator","07H00 to 15H30"]
[6097,"MB","Nkosi","Musa","Empangeni","Senior Operator","18H000 to 6H00 "]
[6797,"FC","Dube","Fanelesibonge","Enseleni/Aquadene/Breckenham/Wildenweide/Velden vlie","Stock Controller","07H00 to 15H30"]
[7204,"MA","Nkosi","Memezi","Mzingazi","Quality Controller","07H00 to 15H30"]
[7207,"STP ","Mfuphi","Sibusiso","Empangeni","Artisan Turner","07H00 to 15H30"]
[17388,"CN ","Ndlovu","Cindy","Empangeni","Operator","06H00 to 18H00"]
[13509,"PM","Mthembu","Phumlile","Mandlanzini/Birdswood/Arboretum/Veldenvlei","Officer","07H00 to 15H30"]
[13710,"WS","Mgobhozi","Wallice","Mzingazi","Officer","07H00 to 15H30"]
[34489,"SB","Gumede","Sithembiso","Empangeni","Operator","18H000 to 6H00 "]
[14553,"ZD","Gumede","Zakhele","Empangeni","Senior Operator","07H00 to 15H30"]
[36316,"IT","Kheswa","Thabiso","Empangeni","Senior Operator","18H000 to 6H00 "]
[42762,"NE","Zikalala","Njabulo","Empangeni","Artisan Wagon fitter","18H000 to 6H00 "]
[42337,"S","Masoka","Sandile","Mandlanzini/Birdswood/Arboretum/Veldenvlei","Senior Operator","07H00 to 15H30"]
[116676,"MC","Machi","Melusi","Empangeni","Operator","18H000 to 6H00 "]
[106503,"CS","Mbambo","Charles","Esikhawini","Operator","07H00 to 15H30"]
[106514,"LCG","Mtshali","Lindokuhle","Esikhawini","Senior Operator","07H00 to 15H30"]
[116558,"IS","Khoza","Ipho","Enseleni/Aquadene/Breckenham/Wildenweide/Velden vlie","Operator","18H000 to 6H00 "]
[11035,"SW","Ngongoma","Sihle","Mandlanzini/Birdswood/Arboretum/Veldenvlei","Senior Operator","18H000 to 6H00 "]
[116793,"TB","Mjwara","Thokozani","Mandlanzini/Birdswood/Arboretum/Veldenvlei","Operator","18H000 to 6H00 "]
[124449,"KS","Maphumulo","Khethokuhle","Empangeni","Senior Operator","07H00 to 15H30"]
[128564,"KW","Ngwenya","Khayelihle","Empangeni","Artisan Fitter","07H00 to 15H30"]
[131950,"SM","Sibiya","Sipho","Esikhawini","Operator","07H00 to 15H30"]
[142621,"NO","Qwabe","Nokuphila","Mzingazi","Operator","07H00 to 15H30"]
[15491,"DT","Zwane","Dumisani","Empangeni","Artisan Fitter","07H00 to 15H30"]
[107027,"MS","Vilakazi","Musa","Empangeni","Operator","07H00 to 15H30"]
[7465,"AW","Dlomo","Andile","Empangeni","Artisan Fitter","07H00 to 15H30"]

{"sheet":"Sheet6","index":1,"n_rows":145,"n_cols":9,"rows_kept":145,"hidden":true}
[" Pers.No.","Last name","First name","Pick Up Point","Shift ","Destination","Supervisor","Working Times","Comment"]
[7114,"Shandu","Nkosiyapha","Empangeni","A","Wagons 2279 Yard","Sipho Mbata","06H00 to 18H00/ 18H00 to 06H00","In-service"]
[6080,"Mgabi","Petros","Empangeni","B","Wagons South Dunes Depot","Khaya Mgabi","06H00 to 18H00/ 18H00 to 06H00"]
[8856,"Ximba","Mbuyiselo","Empangeni","A","Wagons 2279 Yard","Sipho Mbata","06H00 to 18H00/ 18H00 to 06H00","In-service"]
[10877,"Barnard","Jakobus","Empangeni","A","Wagons 2279 Yard","Sipho Mbata","06H00 to 18H00/ 18H00 to 06H00","In-service"]
[13243,"Madlala","Phumelele","Empangeni","A","Wagons South Dunes Depot","Zanele Ncube","06H00 to 18H00/ 18H00 to 06H00"]
[13246,"Mtetwa","Zakhele","Empangeni","B","Wagons 2279 Yard","Dickson Ngcobo","06H00 to 18H00/ 18H00 to 06H00","In-service"]
[13358,"Ntuli","Beatrice","Esikhawini/Empangeni",null,"Wagons South Dunes Depot",null,"07H00 to 15H30"]
[55998,"Mulaudzi","Aluwani","Empangeni","A","Wagons South Dunes Depot","Zanele Ncube","06H00 to 18H00/ 18H00 to 06H00"]
[107021,"Xulu","Nomalanga","Empangeni","B","Wagons 2279 Yard","Dickson Ngcobo","06H00 to 18H00/ 18H00 to 06H00","In-service"]
[111260,"Williamson","Merely","Enseleni/Aquadene/Breckenham/Wildenweide/Velden vlie","A","Wagons South Dunes Depot","Zanele Ncube","06H00 to 18H00/ 18H00 to 06H00"]
[123460,"Gumede","Sifiso","Empangeni","B","Wagons South Dunes Depot","Khaya Mgabi","06H00 to 18H00/ 18H00 to 06H00"]
[124879,"Ngobeni","Erence","Enseleni/Aquadene/Breckenham/Wildenweide/Velden vlie","A","Wagons South Dunes Depot","Zanele Ncube","06H00 to 18H00/ 18H00 to 06H00"]
[124936,"Pitso","Tankiso","Enseleni/Aquadene/Breckenham/Wildenweide/Velden vlie","A","Wagons South Dunes Depot","Zanele Ncube","06H00 to 18H00/ 18H00 to 06H00"]
[127962,"Morapedi","Itumeleng","Enseleni/Aquadene/Breckenham/Wildenweide/Velden vlie","A","Wagons South Dunes Depot","Zanele Ncube","06H00 to 18H00/ 18H00 to 06H00"]
[12734,"Zulu","Nkanyiso","Empangeni",null,"Wagons South Dunes Depot",null,"06H00 to 18H00","Day Shift Only"]
[41851,"Adelle","Harrichunder","Richards Bay",null,"Wagons South Dunes Depot",null,"07H00 to 15H30"]
[120349,"Mchunu","Christian","Enseleni/Aquadene/Breckenham/Wildenweide/Velden vlie","A","Wagons 2279 Yard","Sipho Mbata","06H00 to 18H00/ 18H00 to 06H00","In-service"]
[123483,"Ntombela","Nokuthula","Esikhawini/Empangeni",null,"Wagons South Dunes Depot",null,"07H00 to 15H30"]
[123189,"Solomons","Martin","Empangeni","B","Wagons South Dunes Depot","Khaya Mgabi","06H00 to 18H00/ 18H00 to 06H00"]
[41740,"Dlamini","Bukhosibakhe","Empangeni","B","Wagons South Dunes Depot","Khaya Mgabi","06H00 to 18H00/ 18H00 to 06H00"]
[41742,"Malan","Pieter","Empangeni","C","Wagons 2279 Yard","Victor Mthembu","06H00 to 18H00/ 18H00 to 06H00","In-service"]
[10559,"Mchunu","Tholinhlanhla","Empangeni","C","Wagons 2279 Yard","Victor Mthembu","06H00 to 18H00/ 18H00 to 06H00","In-service"]
[11354,"Kunene","Lungile","Empangeni","C","Wagons 2279 Yard","Victor Mthembu","06H00 to 18H00/ 18H00 to 06H00","In-service"]
[11829,"Sander","Ashley","Enseleni/Aquadene/Breckenham/Wildenweide/Velden vlie","A","Wagons 2279 Yard","Sipho Mbata","06H00 to 18H00/ 18H00 to 06H00","In-service"]
[12162,"Marikeni","Christopher","Enseleni/Aquadene/Breckenham/Wildenweide/Velden vlie","C","Wagons 2279 Yard","Victor Mthembu","06H00 to 18H00/ 18H00 to 06H00","In-service"]
[12257,"Dlamini","Victor","Enseleni/Aquadene/Breckenham/Wildenweide/Velden vlie","C","Wagons 2279 Yard","Victor Mthembu","06H00 to 18H00/ 18H00 to 06H00","In-service"]
[12259,"Marnitz","Darryl","Empangeni",null,"Wagons South Dunes Depot",null,"06H00 to 18H00","Day Shift Only"]
[12577,"Mkhonto","Zandise","Empangeni","B","Wagons South Dunes Depot","Khaya Mgabi","06H00 to 18H00/ 18H00 to 06H00"]
[13230,"Hlatshwayo","Vukani","Enseleni/Aquadene/Breckenham/Wildenweide/Velden vlie","B","Wagons South Dunes Depot","Khaya Mgabi","06H00 to 18H00/ 18H00 to 06H00"]
[13374,"Nxumalo","Princess","Enseleni/Aquadene/Breckenham/Wildenweide/Velden vlie","A","Wagons South Dunes Depot","Zanele Ncube","06H00 to 18H00/ 18H00 to 06H00"]
[28653,"Ngwenya","Nqobile","Enseleni/Aquadene/Breckenham/Wildenweide/Velden vlie","A","Wagons South Dunes Depot","Zanele Ncube","06H00 to 18H00/ 18H00 to 06H00"]
[41713,"Dladla","Richman","Enseleni/Aquadene/Breckenham/Wildenweide/Velden vlie","A","Wagons South Dunes Depot","Zanele Ncube","06H00 to 18H00/ 18H00 to 06H00"]
[41771,"Mthethwa","Sibusiso","Enseleni/Aquadene/Breckenham/Wildenweide/Velden vlie","C","Wagons 2279 Yard","Victor Mthembu","06H00 to 18H00/ 18H00 to 06H00","In-service"]
[41780,"Mthethwa","Abigail","Enseleni/Aquadene/Breckenham/Wildenweide/Velden vlie","B","Wagons 2279 Yard","Dickson Ngcobo","06H00 to 18H00/ 18H00 to 06H00","In-service"]
[110251,"Mnguni","Precious","Enseleni/Aquadene/Breckenham/Wildenweide/Velden vlie","C","Wagons 2279 Yard","Victor Mthembu","06H00 to 18H00/ 18H00 to 06H00","In-service"]
[121430,"Zahela","Oscar","Enseleni/Aquadene/Breckenham/Wildenweide/Velden vlie","A","Wagons South Dunes Depot","Zanele Ncube","06H00 to 18H00/ 18H00 to 06H00"]
[122545,"Mangane","Lethukuthula","Enseleni/Aquadene/Breckenham/Wildenweide/Velden vlie","A","Wagons South Dunes Depot","Zanele Ncube","06H00 to 18H00/ 18H00 to 06H00"]
[123429,"Ngcobo","Dickson","Enseleni/Aquadene/Breckenham/Wildenweide/Velden vlie","B","Wagons 2279 Yard","Dickson Ngcobo","06H00 to 18H00/ 18H00 to 06H00","In-service"]
[124234,"Xaba","Thulani","Enseleni/Aquadene/Breckenham/Wildenweide/Velden vlie","C","Wagons 2279 Yard","Victor Mthembu","06H00 to 18H00/ 18H00 to 06H00","In-service"]
[124245,"Mthembu","Victor","Esikhawini","C","Wagons 2279 Yard","Victor Mthembu","06H00 to 18H00/ 18H00 to 06H00","In-service"]
[124246,"Mngomezulu","Cyril","Enseleni/Aquadene/Breckenham/Wildenweide/Velden vlie","A","Wagons South Dunes Depot","Zanele Ncube","06H00 to 18H00/ 18H00 to 06H00"]
[129740,"Gumede","Vincent","Enseleni/Aquadene/Breckenham/Wildenweide/Velden vlie","A","Wagons South Dunes Depot","Zanele Ncube","06H00 to 18H00/ 18H00 to 06H00"]
[11838,"Ngomane","Khungeka","Esikhawini","A","Wagons 2279 Yard","Sipho Mbata","06H00 to 18H00/ 18H00 to 06H00","In-service"]
[13247,"Billie","Siphokazi","Mandlanzini/Birdswood/Arboretum/Veldenvlei","C","Wagons 2279 Yard","Victor Mthembu","06H00 to 18H00/ 18H00 to 06H00","In-service"]
[15883,"Mkhize","Shwelezile","Ngwelezane","C","Wagons 2279 Yard","Victor Mthembu","06H00 to 18H00/ 18H00 to 06H00","In-service"]
[41756,"Cele","Mbongeni","Enseleni/Aquadene/Breckenham/Wildenweide/Velden vlie","B","Wagons 2279 Yard","Dickson Ngcobo","06H00 to 18H00/ 18H00 to 06H00","In-service"]
[107436,"Cebekhulu","Mdumiseni","Enseleni/Aquadene/Breckenham/Wildenweide/Velden vlie","B","Wagons South Dunes Depot","Khaya Mgabi","06H00 to 18H00/ 18H00 to 06H00"]
[121439,"Linda","Ntokozo","Enseleni/Aquadene/Breckenham/Wildenweide/Velden vlie","B","Wagons South Dunes Depot","Khaya Mgabi","06H00 to 18H00/ 18H00 to 06H00"]
[121476,"Nkosi","Mbango","Enseleni/Aquadene/Breckenham/Wildenweide/Velden vlie","B","Wagons South Dunes Depot","Khaya Mgabi","06H00 to 18H00/ 18H00 to 06H00"]
[12770,"Nyawo","Sandile","Esikhawini","A","Wagons South Dunes Depot","Zanele Ncube","06H00 to 18H00/ 18H00 to 06H00"]
[13135,"Gwala","Richarch","Enseleni/Aquadene/Breckenham/Wildenweide/Velden vlie","B","Wagons South Dunes Depot","Khaya Mgabi","06H00 to 18H00/ 18H00 to 06H00"]
[15082,"Pato","Nkosinathi","Esikhawini","A","Wagons South Dunes Depot","Zanele Ncube","06H00 to 18H00/ 18H00 to 06H00"]
[41727,"Mphanya","Margaret","Enseleni/Aquadene/Breckenham/Wildenweide/Velden vlie","B","Wagons South Dunes Depot","Khaya Mgabi","06H00 to 18H00/ 18H00 to 06H00"]
[123172,"Ncube","Thembisile","Enseleni/Aquadene/Breckenham/Wildenweide/Velden vlie","B","Wagons South Dunes Depot","Khaya Mgabi","06H00 to 18H00/ 18H00 to 06H00"]
[123495,"Ximba","Mandisa","Esikhawini","A","Wagons South Dunes Depot","Zanele Ncube","06H00 to 18H00/ 18H00 to 06H00"]
[5765,"Tembe","Lindani","Enseleni/Aquadene/Breckenham/Wildenweide/Velden vlie","B","Wagons South Dunes Depot","Khaya Mgabi","06H00 to 18H00/ 18H00 to 06H00"]
[6733,"Mkhize","Cornelius","Esikhawini","A","Wagons South Dunes Depot","Zanele Ncube","06H00 to 18H00/ 18H00 to 06H00"]
[11004,"Gumede","Thuthukile","Empangeni",null,"Wagons South Dunes Depot",null,"06H00 to 18H00","Day Shift Only"]
[11095,"Ndlovu","Msawenkosi","Empangeni",null,"Wagons South Dunes Depot",null,"06H00 to 18H00","Day Shift Only"]
[11251,"Mgabi","Lethiwe","Esikhawini","B","Wagons 2279 Yard","Dickson Ngcobo","06H00 to 18H00/ 18H00 to 06H00","In-service"]
[12260,"Magwaza","Phiwayinkosi","Esikhawini","B","Wagons 2279 Yard","Dickson Ngcobo","06H00 to 18H00/ 18H00 to 06H00","In-service"]
[12412,"Govender","Koopusamy","Enseleni/Aquadene/Breckenham/Wildenweide/Velden vlie",null,"Wagons South Dunes Depot",null,"06H00 to 18H00","Day Shift Only"]
[12732,"Henwood","Ricardo","Enseleni/Aquadene/Breckenham/Wildenweide/Velden vlie",null,"Wagons South Dunes Depot",null,"06H00 to 18H00","Day Shift Only"]
[12745,"Mbokazi","Sakhiseni","Esikhawini","B","Wagons 2279 Yard","Dickson Ngcobo","06H00 to 18H00/ 18H00 to 06H00","In-service"]
[12747,"Jali","Velemseni","Esikhawini","A","Wagons South Dunes Depot","Zanele Ncube","06H00 to 18H00/ 18H00 to 06H00"]
[13227,"Mthembu","Simangalisile","Enseleni/Aquadene/Breckenham/Wildenweide/Velden vlie",null,"Wagons South Dunes Depot",null,"06H00 to 18H00","Day Shift Only"]
[13231,"Ngcobo","Zinhle","Enseleni/Aquadene/Breckenham/Wildenweide/Velden vlie",null,"Wagons South Dunes Depot",null,"06H00 to 18H00","Day Shift Only"]
[13347,"Khuzwayo","Zamakhuze","Enseleni/Aquadene/Breckenham/Wildenweide/Velden vlie",null,"Wagons South Dunes Depot",null,"06H00 to 18H00/ 18H00 to 06H00","Day Shift Only"]
[14156,"Gumede","Michal","Esikhawini",null,"Wagons South Dunes Depot",null,"06H00 to 18H00","Day Shift Only"]
[14454,"Moela","Khomotso","Esikhawini","A","Wagons South Dunes Depot","Zanele Ncube","06H00 to 18H00/ 18H00 to 06H00"]
[15065,"Dube","Muziwandile","Esikhawini","B","Wagons South Dunes Depot","Khaya Mgabi","06H00 to 18H00/ 18H00 to 06H00"]
[15256,"Gumede","Ndoda","Esikhawini",null,"Wagons South Dunes Depot",null,"06H00 to 18H00","Day Shift Only"]
[15603,"Ginidza","Teressa","Richards Bay",null,"Wagons South Dunes Depot",null,"07H00 to 15H30"]
[15643,"Ndlovu","Nonhlanhla","Esikhawini","B","Wagons 2279 Yard","Dickson Ngcobo","06H00 to 18H00/ 18H00 to 06H00","In-service"]
[17387,"Mtshali","Sipho","Mandlanzini/Birdswood/Arboretum/Veldenvlei","A","Wagons South Dunes Depot","Zanele Ncube","06H00 to 18H00/ 18H00 to 06H00"]
[41667,"Sithole","Thokozile","Esikhawini","B","Wagons South Dunes Depot","Khaya Mgabi","06H00 to 18H00/ 18H00 to 06H00"]
[41728,"Ngubande","Sipho","Mandlanzini/Birdswood/Arboretum/Veldenvlei","A","Wagons 2279 Yard","Sipho Mbata","06H00 to 18H00/ 18H00 to 06H00","In-service"]
[41729,"Mashiyane","Senamisile ","Esikhawini/Empangeni",null,"Wagons South Dunes Depot",null,"07H00 to 15H30"]
[41734,"Ntuli","Vusumuzi","Esikhawini",null,"Wagons South Dunes Depot",null,"06H00 to 18H00","Day Shift Only"]
[41739,"Ncube","Zanele","Mandlanzini/Birdswood/Arboretum/Veldenvlei","A","Wagons South Dunes Depot","Zanele Ncube","06H00 to 18H00/ 18H00 to 06H00"]
[41743,"Millin","John","Mandlanzini/Birdswood/Arboretum/Veldenvlei",null,"Wagons South Dunes Depot",null,"06H00 to 18H00","Day Shift Only"]
[41745,"Cele","Gugulethu","Esikhawini","B","Wagons South Dunes Depot","Khaya Mgabi","06H00 to 18H00/ 18H00 to 06H00"]
[41748,"Ncanana","Cyprian","Mandlanzini/Birdswood/Arboretum/Veldenvlei","A","Wagons South Dunes Depot","Zanele Ncube","06H00 to 18H00/ 18H00 to 06H00"]
[41757,"Mbili","Sthembiso","Mandlanzini/Birdswood/Arboretum/Veldenvlei","A","Wagons South Dunes Depot","Zanele Ncube","06H00 to 18H00/ 18H00 to 06H00"]
[41777,"Mathiso","Lelethu","Mandlanzini/Birdswood/Arboretum/Veldenvlei","B","Wagons South Dunes Depot","Khaya Mgabi","06H00 to 18H00/ 18H00 to 06H00"]
[53488,"Veldhuyzen Van Zanten","Johan","Mandlanzini/Birdswood/Arboretum/Veldenvlei","B","Wagons South Dunes Depot","Khaya Mgabi","06H00 to 18H00/ 18H00 to 06H00"]
[106498,"Mdluli","Siphamandla","Mandlanzini/Birdswood/Arboretum/Veldenvlei","A","Wagons South Dunes Depot","Zanele Ncube","06H00 to 18H00/ 18H00 to 06H00"]
[106516,"Mthembu","Bawinile","Mandlanzini/Birdswood/Arboretum/Veldenvlei","A","Wagons South Dunes Depot","Zanele Ncube","06H00 to 18H00/ 18H00 to 06H00"]
[107422,"Dube","Audacious","Mandlanzini/Birdswood/Arboretum/Veldenvlei","A","Wagons South Dunes Depot","Zanele Ncube","06H00 to 18H00/ 18H00 to 06H00"]
[107434,"Sejam","Mongezi","Mandlanzini/Birdswood/Arboretum/Veldenvlei","B","Wagons South Dunes Depot","Khaya Mgabi","06H00 to 18H00/ 18H00 to 06H00"]
[107439,"Seitheisho","Boitumelo","Mandlanzini/Birdswood/Arboretum/Veldenvlei","B","Wagons South Dunes Depot","Khaya Mgabi","06H00 to 18H00/ 18H00 to 06H00"]
[110360,"Tsoeute","Molatudi","Mandlanzini/Birdswood/Arboretum/Veldenvlei","B","Wagons South Dunes Depot","Khaya Mgabi","06H00 to 18H00/ 18H00 to 06H00"]
[110487,"Dhlamini","Bongumusa","Mandlanzini/Birdswood/Arboretum/Veldenvlei","B","Wagons South Dunes Depot","Khaya Mgabi","06H00 to 18H00/ 18H00 to 06H00"]
[110616,"Makhele","Mokebe","Mandlanzini/Birdswood/Arboretum/Veldenvlei","B","Wagons South Dunes Depot","Khaya Mgabi","06H00 to 18H00/ 18H00 to 06H00"]
[116517,"Mosala","Maleho","Mandlanzini/Birdswood/Arboretum/Veldenvlei","A","Wagons South Dunes Depot","Zanele Ncube","06H00 to 18H00/ 18H00 to 06H00"]
[116638,"Mofolo","Petros","Mandlanzini/Birdswood/Arboretum/Veldenvlei","B","Wagons South Dunes Depot","Khaya Mgabi","06H00 to 18H00/ 18H00 to 06H00"]
[119276,"Vumase","Nothando","Mandlanzini/Birdswood/Arboretum/Veldenvlei","A","Wagons South Dunes Depot","Zanele Ncube","06H00 to 18H00/ 18H00 to 06H00"]
[119616,"Mantshiyane","Teboho","Mandlanzini/Birdswood/Arboretum/Veldenvlei","B","Wagons South Dunes Depot","Khaya Mgabi","06H00 to 18H00/ 18H00 to 06H00"]
[119835,"Maphumulo","Nhlanhla","Mandlanzini/Birdswood/Arboretum/Veldenvlei","B","Wagons South Dunes Depot","Khaya Mgabi","06H00 to 18H00/ 18H00 to 06H00"]
[121483,"Mthethwa","Mqondisi","Mandlanzini/Birdswood/Arboretum/Veldenvlei","B","Wagons South Dunes Depot","Khaya Mgabi","06H00 to 18H00/ 18H00 to 06H00"]
[122151,"Khumalo","Nqobile","Mzingazi/Mereense","B","Wagons 2279 Yard","Dickson Ngcobo","06H00 to 18H00/ 18H00 to 06H00","In-service"]
[122178,"Malek","Nadeem","Mandlanzini/Birdswood/Arboretum/Veldenvlei","A","Wagons South Dunes Depot","Zanele Ncube","06H00 to 18H00/ 18H00 to 06H00"]
[122339,"Malembe","Simphiwe","Mzingazi/Mereense","B","Wagons South Dunes Depot","Khaya Mgabi","06H00 to 18H00/ 18H00 to 06H00"]
[122932,"Sthole","nkosinomusa","Mzingazi/Mereense","B","Wagons South Dunes Depot","Khaya Mgabi","06H00 to 18H00/ 18H00 to 06H00"]
[123165,"Van Kratenberg",null,"Mzingazi/Mereense","A","Wagons South Dunes Depot","Zanele Ncube","06H00 to 18H00/ 18H00 to 06H00"]
[123448,"Ndebele","Zanele","Mandlanzini/Birdswood/Arboretum/Veldenvlei",null,"Wagons South Dunes Depot",null,"06H00 to 18H00","Day Shift Only"]
[123537,"Van Wyk","ARS","Mzingazi/Mereense","A","Wagons South Dunes Depot","Zanele Ncube","06H00 to 18H00/ 18H00 to 06H00"]
[124227,"Sekete","Lucas","Mzingazi/Mereense","B","Wagons South Dunes Depot","Khaya Mgabi","06H00 to 18H00/ 18H00 to 06H00"]
[125316,"Tshabalala","Dinah","Mzingazi/Mereense","A","Wagons South Dunes Depot","Zanele Ncube","06H00 to 18H00/ 18H00 to 06H00"]
[125646,"Wilken","Mari","Mzingazi/Mereense","B","Wagons South Dunes Depot","Khaya Mgabi","06H00 to 18H00/ 18H00 to 06H00"]
[125832,"Gumede","Thobile","Mzingazi/Mereense","B","Wagons South Dunes Depot","Khaya Mgabi","06H00 to 18H00/ 18H00 to 06H00"]
[125849,"Mthembu","Bongani","Mzingazi/Mereense","A","Wagons South Dunes Depot","Zanele Ncube","06H00 to 18H00/ 18H00 to 06H00"]
[126559,"Ngcobo","Mlungisi","Mzingazi/Mereense","B","Wagons South Dunes Depot","Khaya Mgabi","06H00 to 18H00/ 18H00 to 06H00"]
[127838,"Du Plessis","Chris","Mzingazi/Mereense","A","Wagons 2279 Yard","Sipho Mbata","06H00 to 18H00/ 18H00 to 06H00","In-service"]
[128002,"Cele","Lindani","Ngwelezane","A","Wagons 2279 Yard","Sipho Mbata","06H00 to 18H00/ 18H00 to 06H00","In-service"]
[128007,"Gumede","Thobile","Ngwelezane","A","Wagons 2279 Yard","Sipho Mbata","06H00 to 18H00/ 18H00 to 06H00","In-service"]
[128098,"Mkhwanazi","Mbongeni","Ngwelezane","B","Wagons South Dunes Depot","Khaya Mgabi","06H00 to 18H00/ 18H00 to 06H00"]
[129780,"Mbata","Sipho","Ngwelezane","A","Wagons 2279 Yard","Sipho Mbata","06H00 to 18H00/ 18H00 to 06H00","In-service"]
[142631,"Ndlovu","Almon","Ngwelezane","B","Wagons South Dunes Depot","Khaya Mgabi","06H00 to 18H00/ 18H00 to 06H00"]
[148724,"Zondi","Prudence","Ngwelezane","A","Wagons South Dunes Depot","Zanele Ncube","06H00 to 18H00/ 18H00 to 06H00"]
[152868,"Dube","Lindani","Ngwelezane","B","Wagons 2279 Yard","Dickson Ngcobo","06H00 to 18H00/ 18H00 to 06H00","In-service"]
[165144,"Ngubane","Lungile","Mandlanzini/Birdswood/Arboretum/Veldenvlei",null,"Wagons South Dunes Depot",null,"06H00 to 18H00","Day Shift Only"]
[11841,"Mlambo","Lindiwe","Mandlanzini/Birdswood/Arboretum/Veldenvlei",null,"Wagons South Dunes Depot",null,"06H00 to 18H00","Day Shift Only"]
[11843,"Zikhali","Siphamandla","Mzingazi/Mereense",null,"Wagons South Dunes Depot",null,"06H00 to 18H00","Day Shift Only"]
[12254,"Hlongwa","Zamahlongwa","Mzingazi/Mereense",null,"Wagons South Dunes Depot",null,"06H00 to 18H00","Day Shift Only"]
[12499,"Mzolisa","Nozipho","Ngwelezane",null,"Wagons South Dunes Depot",null,"06H00 to 18H00","Day Shift Only"]
[15577,"Zikhali","Thokozani","Ngwelezane",null,"Wagons South Dunes Depot",null,"06H00 to 18H00","Day Shift Only"]
[41754,"Mthethwa","Sarah","Ngwelezane",null,"Wagons South Dunes Depot",null,"06H00 to 18H00","Day Shift Only"]
[12882,"Mdunge","Gentleness","Ngwelezane","A","Wagons South Dunes Depot","Zanele Ncube","06H00 to 18H00/ 18H00 to 06H00"]
[13648,"Nyaba","Bhekizaba","Ngwelezane",null,"Wagons South Dunes Depot",null,"06H00 to 18H00","Day Shift Only"]
[14867,"Mthethwa","Thokozani","Ngwelezane","A","Wagons South Dunes Depot","Zanele Ncube","06H00 to 18H00/ 18H00 to 06H00"]
[16110,"Monene","Sello","Richards Bay",null,"Wagons South Dunes Depot",null,"07H00 to 15H30"]
[16462,"Mkhize","Siphelele","Richards Bay",null,"Wagons South Dunes Depot",null,"07H00 to 15H30"]
[8730,"Mlambo","Thulani","Richards Bay",null,"Wagons South Dunes Depot",null,"07H00 to 15H30"]
[123665,"Ndlovu","Nonsikelelo","Ngwelezane",null,"Wagons South Dunes Depot",null,"06H00 to 18H00","Day Shift Only"]
[40976,"Sithole","Bhekithemba","Ngwelezane","A","Wagons South Dunes Depot","Zanele Ncube","06H00 to 18H00/ 18H00 to 06H00"]
[121471,"Mthethwa","Duduzile","Ngwelezane","B","Wagons South Dunes Depot","Khaya Mgabi","06H00 to 18H00/ 18H00 to 06H00"]
[123259,"Myeni","Syabonga","Ngwelezane","B","Wagons South Dunes Depot","Khaya Mgabi","06H00 to 18H00/ 18H00 to 06H00"]
[108866,"Ngxetwane","Nande","Richards Bay",null,"Wagons South Dunes Depot",null,"07H00 to 15H30"]
[15970,"Nyongwana","Bongani","Richards Bay",null,"Wagons South Dunes Depot",null,"07H00 to 15H30"]
[14182,"Mjadu","Mlungisi","Richards Bay",null,"Wagons South Dunes Depot",null,"07H00 to 15H30"]
[42658,"Zulu","Ayanda","Richards Bay",null,"Wagons South Dunes Depot",null,"07H00 to 15H30"]
[121302,"Xaba","Rosemary","Ngwelezane","B","Wagons South Dunes Depot","Khaya Mgabi","06H00 to 18H00/ 18H00 to 06H00"]
[121325,"Mtshali","Abbiet","Ngwelezane","B","Wagons South Dunes Depot","Khaya Mgabi","06H00 to 18H00/ 18H00 to 06H00"]

{"sheet":"(Summary)","index":2,"n_rows":30,"n_cols":21,"rows_kept":30,"merged":[[1,1,1,20],[2,2,2,4],[2,5,2,7],[2,8,3,8],[2,9,2,12],[2,13,2,15],[2,16,3,16],[2,17,3,17],[2,18,3,18],[2,19,3,19],[2,20,3,20],[3,1,9,1],[11,1,11,4],[11,5,12,6],[11,7,12,7],[11,8,12,15],[13,1,14,1],[13,5,13,6],[13,8,13,15],[14,5,14,6],[14,8,14,15],[17,1,17,16],[18,2,18,4],[18,5,18,7],[18,8,18,10],[18,11,19,11],[18,12,19,12],[18,13,19,14],[18,15,19,16],[19,1,21,1],[20,13,20,14],[20,15,20,16],[21,13,21,14],[24,1,24,3],[24,4,25,4],[24,5,25,5],[24,6,25,13],[26,1,29,1],[26,6,26,13],[26,16,29,16],[26,17,29,17],[26,19,29,19],[26,20,29,20],[27,6,27,13],[28,6,28,13],[29,6,29,13]]}
[]
[null,"Port Side(Skoon Kia/Bayview/227/South Dunes)"]
[null,"Shift","Wagons -Skoon Kia & Bayveiw",null,null,"Locomovite-Skoon Kia & 2279",null,null,"Wheels","Wagons Business-SD",{"$nulls":3},"Total",null,null,"Highest No. Per Route","Total\n(Including Day Shift & Wheels)","Recommended Bus Capacity\n","Pick Up Point","Destination"]
[null,"06h00 to 18h00 & 18h00 to 06h00","Team A","Team B","Team C","Team A","Team B","Team C",null,"Team A","Team B","Team C","Day Shift Employees","Team A","Team B","Team C"]
[{"$nulls":5},1,1,null,6,5,8,2,4,{"$f":"J5+F5+C5","v":6},{"$f":"K5+G5+D5","v":9},{"$f":"L5+H5+E5","v":2},{"$f":"MAX(N5:P5)","v":9},{"$f":"Q5+I5+M5","v":19},"23 seater","Empangeni","Skoonkia,2279 & South Dunes"]
[{"$nulls":3},1,1,1,3,1,1,13,13,3,5,{"$f":"J6+F6+C6","v":14},{"$f":"K6+G6+D6","v":17},{"$f":"L6+H6+E6","v":5},{"$f":"MAX(N6:P6)","v":17},{"$f":"Q6+I6+M6","v":23},"35 Seater","Enseleni/Aquadene/Breckenham/Wildenweide/Velden vlie","Skoonkia,2279 & South Dunes"]
[null,null,2,1,null,null,3,2,0,7,4,4,3,9,8,6,9,12,"15 seater","Esikhawini","Skoonkia,2279 & South Dunes"]
[null,null,1,1,1,2,null,1,2,11,12,0,4,14,13,2,14,20,"23 seater","Mandlanzini/Birdswood/Arboretum/Veldenvlei","Skoonkia,2279 & South Dunes"]
[null,null,3,null,5,1,null,2,0,5,6,1,2,9,6,8,9,11,"15 seater","Mzingazi/Mereense","Skoonkia,2279 & South Dunes"]
[null,null,1,3,null,null,3,1,0,7,7,1,5,8,13,2,13,18,"23 seater","Ngwelezane","Skoonkia,2279 & South Dunes"]
[]
[null,"Port Side (South Dunes)",{"$nulls":3},"Total No. Of Employees",null,"Recommended Bus Capacity\n","Pick Up Point"]
[null,"Shift","Wagons","Wheels","Locomotive"]
[null,"07h00 to 15h30",3,12,0,{"$f":"SUM(C14:E14)","v":15},null,"15 seater","Esikhawini/Empangeni/Nseleni"]
[null,null,9,6,0,{"$f":"SUM(C15:E15)","v":15},null,"15 seater","Richards Bay\n(Mandlanzini/Birdswood/Arboretum/Veldenvlei/Mzingazi/Enseleni/Aquadene/Breckenham/Wildenweide/Velden vlie)"]
[]
[]
[null,"Insezi Side(Locomotive Nsezi,Insezi Yard & Wagons Insezi)"]
[null,"Shift","Wagons -Insezi Yard",null,null,"Locomovite-Insezi",null,null,"Total",null,null,"Highest No. Per Route","Recommended Bus Capacity\n","Pick Up Point",null,"Destination"]
[null,"06h00 to 18h00 & 18h00 to 06h00","Team A","Team B","Team C","Team A","Team B","Team C","Team A","Team B","Team C"]
[null,null,2,3,2,2,2,3,{"$f":"C21+F21","v":4},{"$f":"D21+G21","v":5},{"$f":"E21+H21","v":5},{"$f":"MAX(I21:K21)","v":5},"10 seater","Mpangeni/Ngwelezane/Nseleni/Esikhawini",null,"Insezi Loco,Insezi Yard,Insezi Wagons"]
[null,null,1,1,2,2,4,2,{"$f":"C22+F22","v":3},{"$f":"D22+G22","v":5},{"$f":"E22+H22","v":4},{"$f":"MAX(I22:K22)","v":5},"10 seater","Richards Bay(Mandlanzi/Birdswood/Arboretum/Veldenvlie/Breckenham/Wildenweide/Aquadene/Mzingazi/Mereense)",null,"Insezi Loco,Insezi Yard,Insezi Wagons"]
[]
[]
[null,"Insezi Side(Locomotive Insezi,Insezi Yard & Wagons Insezi)",null,null,"Total No. Of Employees","Recommended Bus Capacity\n","Pick Up Point"]
[null,"Shift","Wagons","Locomotive"]
[null,"07h00 to 15h30",12,17,{"$f":"SUM(C27:D27)","v":29},"35 seater","Mzingazi,Brackenham,Meerense,Aquadene,Arboretum,Nseleni"]
[null,null,9,21,{"$f":"SUM(C28:D28)","v":30},"35 seater","Esikhawini/PD"]
[null,null,15,20,{"$f":"SUM(C29:D29)","v":35},"35 seater","Empangeni,Ngwelezane,Nqutshini,Mhlanga"]
[null,null,0,24,{"$f":"SUM(C30:D30)","v":24},"35 seater","Mandlanzini,Velden Vlei,Nseleni"]

{"sheet":"Sheet1","index":3,"n_rows":10,"n_cols":1,"rows_kept":10,"hidden":true}
["Khaya Mgabi"]
["Victor Mthembu"]
["Zanele Ncube"]
["Zamahlongwa Hlongwa"]
["Sipho Mbata"]
["Dickson Ngcobo"]
["Xolanisa Maneli"]
["Ntobeko Radebe"]
["Xolani Phakathi"]
["Loyiso Zwane"]